[Event "21st IPCA World Championship 2022"]
[Site "Ashdod"]
[Date "2022.05.12"]
[Round "4.1"]
[White "Mikheev, Stanislav"]
[Black "Obodchuk, Andrei"]
[Result "0-1"]
[ECO "E04"]
[WhiteElo "2333"]
[BlackElo "2295"]
[Annotator "TA"]
[PlyCount "82"]
[EventDate "2022.05.09"]
[EventType "swiss"]
[EventCountry "ISR"]
[SourceTitle "playchess.com"]
[Source "ChessBase"]
[SourceQuality "1"]
[TimeControl "5400+30"]

{[%evp 11,82,27,10,35,30,43,67,0,0,0,6,-43,-33,-47,-40,-41,-47,-35,-51,-40,-42,-132,-125,-119,-77,-91,-77,-60,-17,-39,0,-8,-5,-30,-18,-117,0,-192,-91,-176,-193,-179,-159,-170,-180,-175,-154,-154,-114,-227,-225,-205,-205,-289,-287,-487,-485,-1262,-1223,-1135,-612,-1237,-844,-29943,-1122,-1287,-1232,-4927,-4927,-6275,-6027,-4802,-1892]} 1. d4 {[%emt 0:00:02]} Nf6 {[%emt 0:00:48]} 2. c4 {[%emt 0:00:08]} e6 {[%emt 0:00:03]} 3. Nf3 {[%emt 0:00:17]} d5 {[%emt 0:00:08]} 4. g3 {[%emt 0:00:42]} dxc4 {[%emt 0:00:08]} 5. Bg2 {[%emt 0:01:27]} c6 {[%emt 0:00:14]} 6. Ne5 {[%emt 0:00:59]} Bb4+ {[%emt 0:00:12]} 7. Bd2 {[%emt 0:05:42] E04: Open Catalan: 5 Nf3.} Be7 {[%emt 0:00:07]} 8. e3 {[%emt 0:02:32]} b5 $1 {[%emt 0:00:38] 8...b5 is better than 8...0-0.} 9. a4 {[%emt 0:04:14]} (9. Nxc6 $14 Nxc6 10. Bxc6+ Bd7 11. Bxa8 Qxa8 12. f3) 9... b4 $1 $11 {[%emt 0:00:39]} 10. Nxc4 {[%emt 0:03:25]} Ba6 {[%emt 0:00:32] [#]} 11. Qc2 $146 {[%emt 0:02:28]} (11. b3 $11) ({Predecessor:} 11. b3 O-O 12. O-O Nbd7 13. Bxc6 Rc8 14. Bg2 Nb6 15. Nxb6 Qxb6 16. Be1 e5 17. dxe5 {½-½ (27) Quesada Perez,L (2517)-Alonso Rosell,A (2570) Mexico City 2022}) 11... O-O $15 {[%emt 0:12:17]} 12. O-O {[%emt 0:03:56]} Nbd7 {[%emt 0:00:56]} 13. Rd1 {[%emt 0:00:58]} Rc8 {[%emt 0:04:08]} 14. e4 {[%emt 0:05:41]} Nb6 {[%emt 0:06:37]} 15. Nxb6 {[%emt 0:04:10]} Qxb6 {[%emt 0:00:12]} 16. Be3 {[%emt 0:00:36]} (16. Bf4 $15) 16... Ng4 $17 {[%emt 0:09:51]} 17. Bf4 {[%emt 0:01:01]} c5 {[%emt 1:01:30]} 18. a5 {[%emt 0:04:53]} Qb5 $36 {[%emt 0:00:00][%mdl 2048] Black is on the roll. Black is more active.} 19. d5 {[%emt 0:01:09]} e5 {[%emt 0:01:00]} 20. Bh3 {[%emt 0:09:27]} Nxh2 {[%emt 0:00:00]} (20... Nxf2 $5 21. Bxc8 (21. Qxf2 exf4 22. Qxf4 Rce8 $15) 21... Nxd1 22. Bxa6 Qxa6 $11) 21. Kxh2 {[%emt 0:01:04]} ({But not} 21. Bxc8 Rxc8 22. Kxh2 exf4 23. gxf4 Qd7 $17) 21... exf4 {[%emt 0:00:00]} 22. gxf4 {[%emt 0:01:35]} ({Much worse is} 22. Bxc8 fxg3+ 23. Kg2 Bxc8 $19) 22... Rce8 {[%emt 0:00:00]} 23. d6 {[%emt 0:06:26]} (23. Kg1 $1 $11 {remains equal.}) 23... Bd8 {[%emt 0:00:00]} ({Better is} 23... Bh4 $1 $17) 24. b3 $2 {[%emt 0:05:44]} (24. Nd2 $1 $11 {and White is okay.}) 24... Bf6 {[%emt 0:00:00]} (24... c4 $19 {and Black stays clearly on top. ...cxb3 is the strong threat.} 25. e5 Rxe5 $1 26. bxc4 Qc5 $1 27. fxe5 Qxe5+ 28. Kg1 Qxa1) 25. e5 {[%emt 0:00:49] [#]} (25. Ra2 $17 c4 26. bxc4) 25... Rxe5 $1 $19 {[%emt 0:00:00][%mdl 512]} 26. fxe5 {[%emt 0:04:41]} Bxe5+ {[%emt 0:00:00]} 27. Kg1 {[%emt 0:00:18][%cal Od6d7] Hoping for d7!} Bxa1 {[%emt 0:00:00] A strong pair of Bishops.} 28. Nd2 {[%emt 0:00:38]} Bd4 {[%emt 0:00:00]} 29. Nf3 {[%emt 0:02:27]} Qxa5 {[%emt 0:00:00]} 30. Nxd4 {[%emt 0:00:44]} (30. Qe4 $17 {was worth a try.}) 30... cxd4 {[%emt 0:00:00]} 31. Rxd4 {[%emt 0:00:12]} Qg5+ {[%emt 0:00:00]} 32. Rg4 {[%emt 0:01:55]} (32. Bg2 $142 Bb7 33. f4) 32... Qh6 {[%emt 0:00:00][%csl LRd6,LRh3]} 33. Qc5 $2 {[%emt 0:11:08] [#]} (33. Bg2 {might work better.} Qxd6 34. Qe4) 33... Bc8 $1 {[%emt 0:00:00]} ({And not} 33... Qxh3 34. Rxg7+ Kh8 35. d7 $11) 34. Rh4 {[%emt 0:04:53]} (34. Kg2 $142 Bxg4 35. Bxg4) 34... Qxh4 {[%emt 0:00:00]} 35. Bxc8 {[%emt 0:00:08][%mdl 4096] Endgame KQR-KQB} h6 {[%emt 0:00:00] White must now prevent ...Re8.} 36. Qc7 {[%emt 0:02:01]} Qg5+ {[%emt 0:00:00]} 37. Kh1 {[%emt 0:00:59]} Qd5+ {[%emt 0:00:00]} (37... Re8 $142 38. Kh2 Re1 39. Bb7 Qg1+ 40. Kh3 Qxf2 41. Qd8+ Kh7 42. Qe7 Rxe7 43. dxe7 Qe3+ 44. Kg2 Qxe7 45. Bf3 Qe3 46. Bb7 Qxb3 47. Be4+ g6 48. Kf2 f5 49. Bb7 Qd3 50. Bc8 Qc2+ 51. Kg3 Qxc8 52. Kg2 b3 53. Kg3 b2 54. Kh3 Qc3+ 55. Kg2 b1=Q 56. Kh2 Qbc2+ 57. Kh1 Qe1#) 38. Kg1 {[%emt 0:00:09] Black is clearly winning.} Qxb3 {[%emt 0:00:00] aiming for ...Qd1+.} 39. Ba6 {[%emt 0:00:33]} Qd1+ {[%emt 0:00:00]} 40. Kg2 {[%emt 0:00:34]} b3 {[%emt 0:00:00][%cal Bb4b3,Bb3b2][%mdl 32] ( -> ...b2)} 41. Bc4 {[%emt 0:01:02]} b2 {[%emt 0:00:00] Weighted Error Value: White=1.08/Black=0.57} 0-1

[Event "21st IPCA World Championship 2022"]
[Site "Ashdod"]
[Date "2022.05.12"]
[Round "4.2"]
[White "Gurbanov, Andrei"]
[Black "Zilberman, Yaacov"]
[Result "1/2-1/2"]
[ECO "A56"]
[WhiteElo "2302"]
[BlackElo "2315"]
[Annotator "TA"]
[PlyCount "37"]
[EventDate "2022.05.09"]
[EventType "swiss"]
[EventCountry "ISR"]
[SourceTitle "playchess.com"]
[Source "ChessBase"]
[SourceQuality "1"]
[TimeControl "5400+30"]

{[%evp 10,37,77,77,104,106,106,73,111,73,77,3,0,0,0,0,43,0,0,-24,-24,-30,-37,-31,-39,-51,-48,-59,-36,-42]} 1. d4 {[%emt 0:00:35]} Nf6 {[%emt 0:00:17]} 2. c4 {[%emt 0:00:26]} c5 {[%emt 0:00:17]} 3. d5 {[%emt 0:00:13]} e5 {[%emt 0:00:08]} 4. Nc3 {[%emt 0:00:46]} d6 {[%emt 0:00:16]} 5. e4 {[%emt 0:00:09]} Be7 {[%emt 0:00:24]} 6. h3 {[%emt 0:00:39]} h5 {[%emt 0:02:13] A56: Czech Benoni.} 7. Be3 {[%emt 0:01:45]} Nbd7 {[%emt 0:00:43][%cal Bb8d7,Bd7f8,Bf8g6][%mdl 32]} 8. Nf3 {[%emt 0:01:02]} Nf8 {[%emt 0:01:28] White is better.} 9. Qd2 {[%emt 0:00:43] White is more active.} h4 {[%emt 0:01:31]} 10. O-O-O {[%emt 0:00:36]} (10. Be2 $16) 10... Ng6 $11 {[%emt 0:00:48] [#]} 11. Kb1 $146 {[%emt 0:02:50]} ({Predecessor:} 11. g3 Bd7 12. Kb1 a6 13. Nxh4 Nxh4 14. gxh4 Rxh4 15. f4 Ng4 16. Bxc5 dxc5 17. Rg1 {1-0 (30) Irzhanov,R (2480)-Dyachkov,S (2520) Halle 1995}) 11... Nh5 {[%emt 0:02:45]} 12. Rg1 {[%emt 0:06:22]} Nhf4 {[%emt 0:04:24]} 13. Rh1 {[%emt 0:15:00]} Bd7 {[%emt 0:06:30]} 14. Ng1 {[%emt 0:05:50]} a6 {[%emt 0:02:28]} 15. g3 {[%emt 0:02:52]} Nh5 {[%emt 0:04:19]} 16. g4 {[%emt 0:07:24] Black is slightly better.} Nhf4 {[%emt 0:01:10]} 17. Nf3 {[%emt 0:00:25]} Rb8 {[%emt 0:03:06]} 18. a4 {[%emt 0:01:22]} Qa5 {[%emt 0:04:08]} 19. b3 {[%emt 0:51:01] Weighted Error Value: White=0.22 (precise) /Black=0.10 (very precise)} 1/2-1/2

[Event "21st IPCA World Championship 2022"]
[Site "Ashdod"]
[Date "2022.05.12"]
[Round "4.3"]
[White "Cosic, Radoslav"]
[Black "Yarmonov, Igor"]
[Result "0-1"]
[ECO "A06"]
[WhiteElo "2003"]
[BlackElo "2394"]
[Annotator "TA"]
[PlyCount "140"]
[EventDate "2022.05.09"]
[EventType "swiss"]
[EventCountry "ISR"]
[SourceTitle "playchess.com"]
[Source "ChessBase"]
[SourceQuality "1"]
[TimeControl "5400+30"]

{[%evp 9,140,-23,-3,-29,-23,-33,-41,-49,-58,-58,-56,-58,-63,-60,-49,-43,-31,-35,-36,-19,-27,-82,-73,-89,-87,-474,-453,-371,-324,-348,-315,-327,-324,-332,-340,-302,-230,-230,-239,-214,-224,-222,-233,-263,-242,-359,-338,-381,-206,-222,-167,-160,-161,-155,-100,-122,-122,-106,-120,-112,-107,-244,-245,-291,-291,-332,-332,-332,-309,-285,-176,-313,-105,-401,-401,-401,-401,-399,-395,-393,-384,-473,-392,-383,-368,-370,-369,-359,-337,-362,-302,-287,-287,-287,-266,-247,-199,-182,-138,-143,-124,-217,-120,-379,-349,-299,-226,-220,-216,-213,-212,-463,-384,-346,-306,-364,-360,-349,-340,-318,-36,-12836,-12836,-12841,-12840,-12841,-12841,-12845,-12845,-12846,-12847,-12847,-12847]} 1. Nf3 {[%emt 0:00:00]} d5 {[%emt 0:00:05]} 2. b3 {[%emt 0:00:27]} Nf6 {[%emt 0:00:40]} 3. Bb2 {[%emt 0:00:08]} e6 {[%emt 0:00:27]} 4. e3 {[%emt 0:00:08]} Nbd7 {[%emt 0:00:34]} 5. Nc3 {[%emt 0:06:23]} c6 {[%emt 0:00:16] [#]} 6. Ne2 $146 {[%emt 0:02:34] A06: Réti Opening: 1 Nf3 d5.} ({Predecessor:} 6. g3 e5 7. Bg2 Bd6 8. Ng5 h6 9. Nf3 O-O 10. d4 e4 11. Nd2 Re8 12. Qe2 {0-1 (21) Seitz,B (1046)-Knoblauch Becker,M (1620) GER email 2019}) 6... Bd6 {[%emt 0:00:55]} 7. Ng3 {[%emt 0:00:19]} h5 {[%emt 0:00:38][%cal Bh7h5,Bh5h4][%mdl 32]} 8. d3 {[%emt 0:03:29] Black is slightly better.} h4 {[%emt 0:00:34]} 9. Ne2 {[%emt 0:00:06]} Qe7 {[%emt 0:01:41]} 10. h3 {[%emt 0:01:51]} e5 {[%emt 0:00:19]} 11. a3 {[%emt 0:00:37]} a5 {[%emt 0:00:46]} 12. c4 {[%emt 0:04:36]} dxc4 {[%emt 0:14:14]} 13. bxc4 {[%emt 0:03:28]} a4 {[%emt 0:01:09]} 14. Nc3 {[%emt 0:04:51]} Nc5 {[%emt 0:00:15]} 15. Nd2 {[%emt 0:01:28]} (15. Be2 $11 {keeps the balance.}) 15... O-O $17 {[%emt 0:00:35]} 16. Be2 {[%emt 0:00:02]} Bc7 {[%emt 0:03:38]} 17. d4 $2 {[%emt 0:03:38][%mdl 8192]} (17. Qc2 $17 {is more resistant.}) 17... exd4 $19 {[%emt 0:00:12]} 18. exd4 {[%emt 0:00:02]} Nd3+ {[%emt 0:00:33]} 19. Kf1 {[%emt 0:00:08]} Nxb2 {[%emt 0:00:28]} 20. Qc2 {[%emt 0:00:01] [#]} Nxc4 {[%emt 0:00:42]} 21. Bxc4 {[%emt 0:00:19]} Ba5 {[%emt 0:02:16]} 22. Nf3 {[%emt 0:00:19]} Be6 {[%emt 0:00:56]} 23. Bxe6 {[%emt 0:01:44]} Qxe6 {[%emt 0:05:01]} 24. Nxa4 {[%emt 0:01:25]} Rfe8 {[%emt 0:00:30]} 25. Nc5 {[%emt 0:00:52]} Qd5 {[%emt 0:02:50]} 26. Rb1 {[%emt 0:05:20]} b5 {[%emt 1:03:16]} 27. Nd3 {[%emt 0:05:22]} (27. Qb3 {keeps fighting.}) 27... Ne4 {[%emt 0:00:00]} 28. Nde5 {[%emt 0:04:51]} f6 {[%emt 0:00:00]} (28... Bc3 $142 29. Qb3 Bxd4 30. Qxd5 cxd5 31. Nxd4 Nd2+ 32. Ke2 Nxb1 33. Rxb1 Rxe5+ 34. Kf1 Rxa3 35. Nxb5 Ra2) 29. Nxc6 {[%emt 0:05:44]} Bc3 {[%emt 0:00:00]} 30. Qb3 {[%emt 0:04:48]} Qxb3 {[%emt 0:00:00] Black is much more active.} 31. Rxb3 {[%emt 0:00:02] [#]} b4 $36 {[%emt 0:00:00][%mdl 2048] Black is really pushing.} ({Black should play} 31... Be1 $1 {[%mdl 512]} 32. Re3 (32. Kxe1 Ng3+ 33. Kd2 Nxh1 $17) (32. Rxb5 $2 Bxf2 33. Ra5 Rxa5 $19) 32... Ng3+ $1 33. Kxe1 Rxe3+ 34. fxe3 Nxh1) 32. Nxb4 $17 {[%emt 0:01:04]} Bxb4 {[%emt 0:00:00]} 33. Rxb4 {[%emt 0:00:51]} Rxa3 {[%emt 0:00:00]} 34. Kg1 {[%emt 0:00:23]} Ng3 $1 {[%emt 0:00:00]} 35. Rb1 {[%emt 0:03:55] Against Ra1} Nxh1 $19 {[%emt 0:00:00]} 36. Kxh1 {[%emt 0:00:01][%mdl 4096] Endgame KRR-KRN} g5 {[%emt 0:00:00]} 37. Rd1 {[%emt 0:02:12]} Kf7 {[%emt 0:00:00]} 38. Rd2 {[%emt 0:02:13]} Kg6 {[%emt 0:00:00]} 39. Kh2 {[%emt 0:01:04]} Kh5 {[%emt 0:00:00]} 40. Ng1 {[%emt 0:04:32]} (40. d5 $142) 40... f5 $2 {[%emt 0:00:00]} (40... Rea8 $19 {and Black stays clearly on top. Strongly threatening ...Ra2.} 41. g4+ Kg6) 41. g3 $2 {[%emt 0:02:31][%mdl 8192]} (41. d5 $17) 41... hxg3+ {[%emt 0:00:00]} 42. fxg3 {[%emt 0:00:58]} Ree3 {[%emt 0:00:00]} 43. Ne2 {[%emt 0:00:12]} Kg6 {[%emt 0:00:00]} 44. Kg2 {[%emt 0:00:17]} Kf6 {[%emt 0:00:00]} 45. Kf2 {[%emt 0:00:59]} Ke7 {[%emt 0:00:00]} 46. Rb2 {[%emt 0:00:51]} Rf3+ {[%emt 0:00:00]} 47. Kg2 {[%emt 0:00:18]} Rfb3 {[%emt 0:00:00]} 48. Rc2 {[%emt 0:00:35]} Kd6 {[%emt 0:00:00]} 49. Kf2 {[%emt 0:00:11]} Rf3+ {[%emt 0:00:00]} 50. Kg2 {[%emt 0:00:08]} Rfe3 {[%emt 0:00:00]} 51. Kf2 {[%emt 0:00:02]} Re7 {[%emt 0:00:17]} 52. Rb2 {[%emt 0:00:38]} Rh7 {[%emt 0:01:25]} 53. Kg2 {[%emt 0:01:19]} Kd5 {[%emt 0:01:37] And now ...Ke4 would win.} 54. Rb5+ {[%emt 0:08:54]} Ke4 {[%emt 0:00:35] ...Ra2 is the strong threat.} 55. Re5+ {[%emt 0:00:24]} Kd3 {[%emt 0:00:04]} 56. Ng1 $2 {[%emt 0:03:13][%mdl 8192]} (56. d5 $17 {is a better defense.}) 56... Ra2+ {[%emt 0:01:50]} 57. Kf3 {[%emt 0:02:54]} Rf7 {[%emt 0:00:18]} ({And not} 57... Kxd4 58. Rxf5 Re7 59. Kg4 $15) 58. Re3+ {[%emt 0:02:34]} Kxd4 {[%emt 0:00:31][%cal Og5g4]} 59. Ne2+ {[%emt 0:00:01]} Kc4 {[%emt 0:00:34]} 60. Re8 $2 {[%emt 0:00:45]} (60. h4 f4 61. Re4+ Kc5 62. hxg5 Ra3+ 63. Kf2 fxg3+ 64. Kg1) 60... Ra3+ {[%emt 0:00:26]} 61. Kf2 {[%emt 0:00:02]} Kd5 {[%emt 0:02:07]} 62. h4 {[%emt 0:00:29]} gxh4 {[%emt 0:00:14]} 63. gxh4 {[%emt 0:00:07]} f4 {[%emt 0:00:24][%cal Bf5f4,Bf4f3,Bf3f2][%mdl 32] Threatens to win with ...f3.} 64. Rc8 {[%emt 0:01:28]} Rh3 $2 {[%emt 0:00:42]} ({Black should try} 64... f3 $19 65. Nc3+ Ke5) 65. h5 $2 {[%emt 0:00:09][%mdl 8192] [#]} (65. Rd8+ $15 Kc5 66. Rc8+ Kb5 67. Rb8+ Kc5 68. Rc8+ Kd5 69. Rd8+ Kc6 70. Rc8+ Kd6 71. Rc4) 65... f3 $1 {[%emt 0:01:24] Black is clearly winning.} ({Not} 65... Rxh5 66. Kf3 $15) 66. Rd8+ {[%emt 0:01:10]} Ke5 {[%emt 0:00:37]} 67. Re8+ {[%emt 0:00:41] [#]} Kd6 $1 {[%emt 0:00:18]} 68. Nc3 {[%emt 0:00:39]} Rh2+ {[%emt 0:00:24]} 69. Kg3 {[%emt 0:00:32]} f2 {[%emt 0:01:36]} 70. Ne4+ {[%emt 0:00:01]} Kd7 {[%emt 0:00:35] Weighted Error Value: White=0.55/Black=0.23 (precise)} 0-1

[Event "21st IPCA World Championship 2022"]
[Site "Ashdod"]
[Date "2022.05.12"]
[Round "4.4"]
[White "Valenta, Vit Vaclav"]
[Black "Campos, Eugenio"]
[Result "0-1"]
[ECO "A00"]
[WhiteElo "2014"]
[BlackElo "2247"]
[Annotator "TA"]
[PlyCount "58"]
[EventDate "2022.05.09"]
[EventType "swiss"]
[EventCountry "ISR"]
[SourceTitle "playchess.com"]
[Source "ChessBase"]
[SourceQuality "1"]
[TimeControl "5400+30"]

{[%evp 9,58,-25,12,-12,6,0,15,8,20,19,11,0,29,32,52,41,54,19,31,22,36,-25,0,-4,22,6,35,16,45,21,33,0,10,-94,-79,-99,-101,-136,-121,-110,-98,-101,-8,-379,-391,-498,-480,-475,-459,-786,-751]} 1. b4 {[%emt 0:00:03]} Nf6 {[%emt 0:00:17]} 2. Bb2 {[%emt 0:00:08]} e6 {[%emt 0:00:12]} 3. a3 {[%emt 0:00:05]} Be7 {[%emt 0:00:06]} 4. Nf3 {[%emt 0:00:10]} O-O {[%emt 0:00:19]} 5. c4 {[%emt 0:00:22]} d6 {[%emt 0:00:52]} 6. g3 {[%emt 0:00:21] A00: Irregular Openings.} b6 {[%emt 0:00:53]} 7. Bg2 {[%emt 0:00:06][%cal Of3e5]} Bb7 {[%emt 0:00:06]} 8. O-O {[%emt 0:00:29] The position is equal.} Nbd7 {[%emt 0:00:14][%cal Bb8d7,Bd7e5,Be5f3][%mdl 32] [#]} 9. d3 $146 {[%emt 0:00:41]} ({Predecessor:} 9. d4 h6 10. Nc3 a6 11. d5 exd5 12. cxd5 Re8 13. Nd4 Ne5 14. Qb3 Qd7 15. f4 {1-0 (25) Trokenheim,M (1782)-Vontina,M (810) LSS email 2012}) 9... c5 {[%emt 0:00:31]} 10. e4 {[%emt 0:05:46]} Qc7 {[%emt 0:01:22]} 11. Nc3 {[%emt 0:08:20]} Rac8 {[%emt 0:00:26]} 12. Re1 {[%emt 0:00:52]} Rfd8 {[%emt 0:00:15]} 13. Qb3 {[%emt 0:03:34]} Ne5 {[%emt 0:03:37]} 14. Rad1 {[%emt 0:05:00]} Nfd7 {[%emt 0:01:27]} 15. Ne2 {[%emt 0:09:57]} (15. Nxe5 $14 dxe5 16. b5) 15... Nxf3+ {[%emt 0:02:35]} 16. Bxf3 {[%emt 0:00:03]} Bf6 {[%emt 0:00:14]} 17. Bg2 {[%emt 0:01:37]} Ne5 {[%emt 0:05:23]} 18. f4 {[%emt 0:04:35]} Ng4 {[%emt 0:00:25]} 19. Bxf6 {[%emt 0:00:32]} Nxf6 {[%emt 0:00:12]} 20. Nc3 {[%emt 0:01:46]} a6 {[%emt 0:00:59]} 21. h3 {[%emt 0:07:53]} (21. b5 $11 {remains equal.}) 21... cxb4 $17 {[%emt 0:00:41]} 22. axb4 {[%emt 0:00:03]} b5 $1 {[%emt 0:00:21][%cal Rb5c4]} 23. Bf1 {[%emt 0:01:16]} Qb6+ {[%emt 0:05:07]} 24. Kg2 {[%emt 0:48:51]} bxc4 {[%emt 0:12:02]} 25. dxc4 {[%emt 0:00:00]} Nxe4 {[%emt 0:00:26]} 26. Rxe4 $4 {[%emt 0:00:00][%mdl 8192] This costs White the game.} (26. Nxe4 $11 {and White stays safe.} f5 27. Bd3 (27. c5 $2 dxc5 28. Bc4 Kf7 $19)) 26... f5 $19 {[%emt 0:00:33][%mdl 64] [#] Pin} ({But not} 26... Qe3 $2 27. Qc2 f5 28. Qd2 Qxd2+ 29. Rxd2 $19) 27. Bd3 {[%emt 0:00:00]} Qe3 {[%emt 0:01:52][%mdl 64] Pin. Black is clearly winning.} (27... fxe4 $2 {is the wrong capture.} 28. Bxe4 Bxe4+ 29. Nxe4 $19) ({Worse is} 27... Bxe4+ 28. Nxe4 fxe4 29. Bxe4 $17) 28. Qc2 {[%emt 0:00:00]} fxe4 {[%emt 0:01:36]} 29. Nxe4 {[%emt 0:00:00]} (29. Bxe4 $142 Rxc4 30. Bxb7 Rxc3 31. Qf2) 29... d5 {[%emt 1:01:57] Weighted Error Value: White=0.59/Black=0.20 (precise)} 0-1